bitfinex-derivatives/quotes_BNBF0:USTF0_20260114
["timestamp","ask_amount","ask_price","bid_price","bid_amount"]
[1768432307552,0.65736768,949.62,947.2,2.64016931]
[1768432307754,0.65736768,949.61,947.2,2.64016931]
[1768432307952,0.65736768,949.6,947.2,2.64016931]
[1768432308151,0.65736768,949.59,947.2,2.64016931]
[1768432308452,5.73972637,949.9,947.2,2.64016931]
[1768432308453,0.65736768,949.58,947.2,2.64016931]
[1768432308653,0.65736768,949.57,947.2,2.64016931]
[1768432308854,0.65736768,949.56,947.2,2.64016931]
[1768432309053,0.65736768,949.55,947.21,2.64016931]
[1768432309356,0.65736768,949.54,947.21,2.64016931]
[1768432309555,0.65736768,949.53,947.22,2.64016931]
[1768432309752,0.65736768,949.52,947.22,2.64016931]
[1768432309952,0.65736768,949.51,947.22,2.64016931]
[1768432310155,0.65736768,949.5,947.22,2.64016931]
[1768432310354,0.65736768,949.49,947.22,2.64016931]
[1768432310555,0.65736768,949.48,947.22,2.64016931]
[1768432310756,0.65736768,949.47,947.22,2.64016931]
[1768432310957,0.65736768,949.46,947.22,2.64016931]
[1768432311154,0.65736768,949.45,947.22,2.64016931]
[1768432311358,0.65736768,949.44,947.22,2.64016931]
[1768432311555,0.65736768,949.43,947.23,2.64016931]
[1768432311760,0.65736768,949.42,947.23,2.64016931]
[1768432311957,0.65736768,949.41,947.23,2.64016931]
[1768432312161,0.65736768,949.4,947.23,2.64016931]
[1768432312359,0.65736768,949.39,947.23,2.64016931]
[1768432312561,0.65736768,949.38,947.24,2.64016931]
[1768432312862,0.65736768,949.37,947.24,2.64016931]
[1768432313158,0.65736768,949.36,947.24,2.64016931]
[1768432313359,0.65736768,949.35,947.24,2.64016931]
[1768432313560,0.65736768,949.34,947.24,2.64016931]
[1768432313762,0.65736768,949.33,947.24,2.64016931]
[1768432313964,0.65736768,949.32,947.24,2.64016931]
[1768432314263,0.65796927,949.31,947.25,2.64016931]
[1768432314463,0.65796927,949.3,947.25,2.64016931]
[1768432314763,0.65796927,949.3,946.9,3.66114111]
[1768432314764,0.65796927,949.29,947.24,2.64016931]
[1768432314965,5.73972637,949.9,947.24,2.64016931]
[1768432314966,0.65796927,949.28,947.24,2.64016931]
[1768432315162,0.65796927,949.27,947.24,2.64016931]
[1768432315363,0.65796927,949.26,947.24,2.64016931]
[1768432315662,0.65796927,949.25,947.24,2.64016931]
[1768432315862,0.65796927,949.24,947.24,2.64016931]
[1768432316061,0.65796927,949.23,947.24,2.64016931]
[1768432316362,0.65796927,949.22,947.25,2.64016931]
[1768432316661,0.65796927,949.21,947.25,2.64016931]
[1768432316864,0.65796927,949.2,947.24,2.64016931]
[1768432317062,0.65796927,949.19,947.24,2.64016931]
[1768432317264,0.65796927,949.18,947.23,2.64016931]
[1768432317462,0.65796927,949.17,947.23,2.64016931]
[1768432317660,0.65796927,949.16,947.23,2.64016931]
[1768432317865,0.65796927,949.15,947.23,2.64016931]
[1768432318066,0.65796927,949.14,947.23,2.64016931]
[1768432318266,0.65796927,949.13,947.23,2.64016931]
[1768432318567,0.65796927,949.12,947.23,2.64016931]
[1768432318765,0.65796927,949.11,947.23,2.64016931]
[1768432318964,0.65796927,949.1,947.23,2.64016931]
[1768432319263,0.65796927,949.09,947.23,2.64016931]
[1768432319464,0.65796927,949.08,947.23,2.64016931]
[1768432319664,0.65796927,949.07,947.23,2.64016931]
[1768432321576,0.65796927,949.07,947.24,2.64016931]
[1768432323566,0.65796927,949.07,947.25,2.64016931]
[1768432325571,0.65796927,949.07,947.26,2.64016931]
[1768432326173,0.65796927,949.06,947.26,2.64016931]
[1768432326366,0.65796927,949.05,947.26,2.64016931]
[1768432326567,0.65796927,949.04,947.27,2.64016931]
[1768432326768,0.65796927,949.03,947.27,2.64016931]
[1768432326971,0.65796927,949.02,947.27,2.64016931]
[1768432327168,0.65796927,949.01,947.27,2.64016931]
[1768432327372,0.65796927,949.0,947.27,2.64016931]
[1768432327667,0.65796927,948.99,947.27,2.64016931]
[1768432327872,0.65796927,948.98,947.27,2.64016931]
[1768432328169,0.65796927,948.97,947.28,2.64016931]
[1768432328369,0.65796927,948.96,947.28,2.64016931]
[1768432328569,0.65796927,948.95,947.28,2.64016931]
[1768432328868,3.38,949.08,947.28,2.64016931]
[1768432329069,0.65902701,949.07,947.28,2.64016931]
[1768432329269,0.65902701,949.06,947.29,2.64016931]
[1768432329573,0.65902701,949.05,947.29,2.64016931]
[1768432329873,0.65902701,949.04,947.29,2.64016931]
[1768432330068,0.65902701,949.03,947.29,2.64016931]
[1768432330270,0.65902701,949.02,947.3,2.64016931]
[1768432330472,0.65902701,949.01,947.3,2.64016931]
[1768432330672,3.38,949.08,947.3,2.64016931]
[1768432330673,0.65902701,949.0,947.3,2.64016931]
[1768432330872,0.65902701,948.99,947.3,2.64016931]
[1768432331168,0.65902701,948.98,947.3,2.64016931]
[1768432331470,0.65902701,948.97,947.32,2.64016931]
[1768432331668,0.65902701,948.96,947.32,2.64016931]
[1768432331872,0.65902701,948.95,947.32,2.64016931]
[1768432332072,0.65902701,948.94,947.32,2.64016931]
[1768432332273,0.65902701,948.93,947.33,2.64016931]
[1768432332470,0.65902701,948.92,947.33,2.64016931]
[1768432332674,0.65902701,948.91,947.33,2.64016931]
[1768432332872,3.38,949.08,947.33,2.64016931]
[1768432333075,0.65981414,949.07,947.33,2.64016931]
[1768432333276,0.65981414,949.06,947.33,2.64016931]
[1768432333474,0.65981414,949.05,947.33,2.64016931]
[1768432333673,0.65981414,949.04,947.33,2.64016931]
[1768432333877,0.65981414,949.03,947.33,2.64016931]
[1768432334071,0.65981414,949.02,947.33,2.64016931]
[1768432334274,0.65981414,949.01,947.33,2.64016931]
[1768432334476,0.65981414,949.0,947.33,2.64016931]
[1768432334677,0.65981414,948.99,947.33,2.64016931]
[1768432334875,0.65981414,948.98,947.33,2.64016931]
[1768432335077,0.65981414,948.97,947.33,2.64016931]
[1768432335274,0.65981414,948.96,947.33,2.64016931]
[1768432335476,0.65981414,948.95,947.33,2.64016931]
[1768432335676,3.38,949.08,947.33,2.64016931]
[1768432335677,0.65981414,948.94,947.33,2.64016931]
[1768432335876,0.65981414,948.93,947.33,2.64016931]
[1768432336080,0.65981414,948.92,947.33,2.64016931]
[1768432336282,3.38,949.08,947.33,2.64016931]
[1768432336577,0.65972965,949.07,947.42,2.64016931]
[1768432336778,0.65972965,949.06,947.42,2.64016931]
[1768432336981,0.65972965,949.05,947.42,2.64016931]
[1768432337180,0.65972965,949.04,947.42,2.64016931]
[1768432337378,0.65972965,949.03,947.42,2.64016931]
[1768432337678,0.65972965,949.02,947.42,2.64016931]
[1768432337877,3.38,949.08,947.42,2.64016931]
[1768432338181,3.38,949.08,947.49,2.64016931]
[1768432338581,3.38,949.08,947.48,2.64016931]
[1768432338984,0.65944528,949.07,947.48,2.64016931]
[1768432339180,3.38,949.08,947.46,2.64016931]
[1768432339382,0.65944671,949.07,947.46,2.64016931]
[1768432339584,3.38,949.08,947.45,2.64016931]
[1768432339883,0.659345,949.07,947.45,2.64016931]
[1768432340080,5.73972637,949.9,947.45,2.64016931]
[1768432340281,0.65934341,949.89,947.45,2.64016931]
[1768432340485,0.65934341,949.88,947.45,2.64016931]
[1768432340680,0.65934341,949.87,947.45,2.64016931]
[1768432340882,0.65934341,949.86,947.45,2.64016931]
[1768432341184,0.65934341,949.85,947.45,2.64016931]
[1768432341382,0.65934341,949.84,947.45,2.64016931]
[1768432341580,0.65934341,949.83,947.45,2.64016931]
[1768432341781,0.65934341,949.82,947.44,2.64016931]
[1768432341981,0.65934341,949.81,947.44,2.64016931]
[1768432342184,0.65934341,949.8,947.45,2.64016931]
[1768432342385,0.65934341,949.79,947.45,2.64016931]
[1768432342581,0.65934341,949.78,947.45,2.64016931]
[1768432342882,0.65934341,949.77,947.44,2.64016931]
[1768432343086,0.65934341,949.76,947.44,2.64016931]
[1768432343283,0.65934341,949.75,947.44,2.64016931]
[1768432343582,0.65934341,949.74,947.44,2.64016931]
[1768432343782,0.65934341,949.73,947.44,2.64016931]
[1768432343986,0.65934341,949.72,947.44,2.64016931]
[1768432344186,0.65934341,949.71,947.44,2.64016931]
[1768432344383,0.65934341,949.7,947.44,2.64016931]
[1768432344688,0.65934341,949.69,947.44,2.64016931]
[1768432344881,0.65934341,949.68,947.44,2.64016931]
[1768432345082,0.65934341,949.67,947.44,2.64016931]
[1768432345286,0.65934341,949.66,947.44,2.64016931]
[1768432345586,0.65934341,949.65,947.44,2.64016931]
[1768432345789,0.65934341,949.64,947.44,2.64016931]
[1768432346083,0.65934341,949.63,947.44,2.64016931]
[1768432346288,0.65934341,949.62,947.44,2.64016931]
[1768432346587,0.65934341,949.61,947.43,2.64016931]
[1768432346886,0.65934341,949.6,947.43,2.64016931]
[1768432347085,0.65934341,949.59,947.43,2.64016931]
[1768432347287,0.65934341,949.58,947.43,2.64016931]
[1768432347484,0.65934341,949.57,947.43,2.64016931]
[1768432347685,0.65934341,949.56,947.43,2.64016931]
[1768432347985,0.65934341,949.55,947.4,2.64016931]
[1768432348188,0.65934341,949.54,947.4,2.64016931]
[1768432348389,0.65934341,949.53,947.4,2.64016931]
[1768432348589,0.65934341,949.52,947.4,2.64016931]
[1768432348888,0.65934341,949.51,947.4,2.64016931]
[1768432349089,0.65934341,949.5,947.4,2.64016931]
[1768432349289,0.65934341,949.49,947.4,2.64016931]
[1768432349487,0.65934341,949.48,947.4,2.64016931]
[1768432349691,0.65934341,949.47,947.4,2.64016931]
[1768432349986,0.65934341,949.46,947.4,2.64016931]
[1768432350186,0.65934341,949.45,947.4,2.64016931]
[1768432350390,0.65934341,949.44,947.4,2.64016931]
[1768432350691,0.65934341,949.43,947.4,2.64016931]
[1768432350988,0.65934341,949.42,947.36,2.64016931]
[1768432351288,0.65934341,949.41,947.36,2.64016931]
[1768432351492,0.65934341,949.4,947.36,2.64016931]
[1768432351693,0.65934341,949.39,947.37,2.64016931]
[1768432351889,0.65934341,949.38,947.37,2.64016931]
[1768432352089,0.65934341,949.37,947.37,2.64016931]
[1768432352294,0.65934341,949.36,947.36,2.64016931]
[1768432352591,0.65934341,949.35,947.36,2.64016931]
[1768432352892,0.65934341,949.34,947.36,2.64016931]
[1768432353089,0.65934341,949.33,947.36,2.64016931]
[1768432353288,0.65934341,949.32,947.36,2.64016931]
[1768432353488,0.65934341,949.31,947.36,2.64016931]
[1768432353690,0.65934341,949.3,947.33,2.64016931]
[1768432353896,0.65934341,949.29,947.33,2.64016931]
[1768432354094,2.493,949.76,947.33,2.64016931]
[1768432354095,0.65934341,949.28,947.33,2.64016931]
[1768432354294,0.65934341,949.27,947.33,2.64016931]
[1768432354495,0.65934341,949.26,947.33,2.64016931]
[1768432354791,0.65934341,949.25,947.33,2.64016931]
[1768432354993,0.65934341,949.24,947.33,2.64016931]
[1768432355193,0.65934341,949.23,947.33,2.64016931]
[1768432355490,0.65934341,949.22,947.33,2.64016931]
[1768432355690,0.65934341,949.21,947.33,2.64016931]
[1768432355890,0.65934341,949.2,947.33,2.64016931]
[1768432356090,0.65934341,949.19,947.33,2.64016931]
[1768432356292,0.65934341,949.18,947.33,2.64016931]
[1768432356490,0.65934341,949.17,947.33,2.64016931]
[1768432356692,0.65934341,949.16,947.33,2.64016931]
[1768432356996,0.65934341,949.15,947.33,2.64016931]
[1768432357197,0.65934341,949.14,947.33,2.64016931]
[1768432357391,0.65934341,949.13,947.33,2.64016931]
[1768432357592,0.65934341,949.12,947.33,2.64016931]
[1768432357793,0.65934341,949.11,947.33,2.64016931]
[1768432357993,0.65934341,949.1,947.33,2.64016931]
[1768432358193,0.65934341,949.09,947.33,2.64016931]
[1768432358495,0.65934341,949.08,947.33,2.64016931]
[1768432358693,0.65934341,949.07,947.33,2.64016931]
[1768432358993,0.65934341,949.06,947.33,2.64016931]
[1768432359294,0.65934341,949.05,947.33,2.64016931]
[1768432359596,2.493,949.76,946.99,3.66114111]
[1768432359597,0.65934341,949.04,947.32,2.64016931]
[1768432359793,0.65934341,949.03,947.32,2.64016931]
[1768432359997,0.65934341,949.02,947.25,2.64016931]
[1768432360195,0.65934341,949.01,947.25,2.64016931]
[1768432360497,0.65934341,949.0,947.25,2.64016931]
[1768432360696,0.65934341,948.99,947.25,2.64016931]
[1768432360897,0.65934341,948.98,947.25,2.64016931]
[1768432361095,0.65934341,948.97,947.25,2.64016931]
[1768432361395,0.65934341,948.96,947.25,2.64016931]
[1768432361596,0.65934341,948.95,947.25,2.64016931]
[1768432361798,0.65934341,948.94,947.25,2.64016931]
[1768432361996,0.65934341,948.93,947.25,2.64016931]
[1768432362198,0.65934341,948.92,947.25,2.64016931]
[1768432362399,0.65934341,948.91,947.25,2.64016931]
[1768432362599,2.493,949.76,947.25,2.64016931]
[1768432362795,0.65806157,949.75,947.25,2.64016931]
[1768432362999,0.65806157,949.74,947.25,2.64016931]
[1768432363293,0.65806157,949.73,947.25,2.64016931]
[1768432363499,0.65806157,949.72,947.25,2.64016931]
[1768432363799,0.65806157,949.71,947.24,2.64016931]
[1768432363995,0.65806157,949.7,947.24,2.64016931]
[1768432364201,0.65806157,949.69,947.24,2.64016931]
[1768432364400,0.65806157,949.68,947.24,2.64016931]
[1768432364595,0.65806157,949.67,947.24,2.64016931]
[1768432364797,0.65806157,949.66,947.24,2.64016931]
[1768432364997,0.65806157,949.65,947.24,2.64016931]
[1768432365197,0.65806157,949.64,947.24,2.64016931]
[1768432365501,0.65806157,949.63,947.24,2.64016931]
[1768432365699,0.65806157,949.62,947.24,2.64016931]
[1768432365895,0.65806157,949.61,947.24,2.64016931]
[1768432366100,0.65806157,949.6,947.24,2.64016931]
[1768432366301,0.65806157,949.59,947.24,2.64016931]
[1768432366501,0.18336877,949.61,947.24,2.64016931]
[1768432366502,0.65806157,949.58,947.24,2.64016931]
[1768432366698,0.65806157,949.57,947.24,2.64016931]
[1768432366903,0.65806157,949.56,947.24,2.64016931]
[1768432367099,0.65806157,949.55,947.24,2.64016931]
[1768432367299,0.65806157,949.54,947.24,2.64016931]
[1768432367602,0.65806157,949.53,947.24,2.64016931]
[1768432367902,0.65806157,949.52,947.24,2.64016931]
[1768432368202,0.65806157,949.51,947.24,2.64016931]
[1768432368398,0.65806157,949.5,947.24,2.64016931]
[1768432368602,0.65806157,949.49,947.24,2.64016931]
[1768432368800,0.65806157,949.48,947.24,2.64016931]
[1768432369000,0.65806157,949.47,947.24,2.64016931]
[1768432369201,0.65806157,949.46,947.24,2.64016931]
[1768432369503,0.65806157,949.45,947.24,2.64016931]
[1768432369700,0.65806157,949.44,947.24,2.64016931]
[1768432369904,0.65806157,949.43,947.24,2.64016931]
[1768432370106,0.65806157,949.42,947.24,2.64016931]
[1768432370306,0.65806157,949.41,947.24,2.64016931]
[1768432370506,0.65806157,949.4,947.23,2.64016931]
[1768432370702,0.65806157,949.39,947.23,2.64016931]
[1768432371003,0.65806157,949.38,947.23,2.64016931]
[1768432371202,0.65806157,949.37,947.23,2.64016931]
[1768432371406,0.65806157,949.36,947.23,2.64016931]
[1768432371702,0.65806157,949.35,947.23,2.64016931]
[1768432371905,0.65806157,949.34,947.23,2.64016931]
[1768432372103,0.65806157,949.33,947.23,2.64016931]
[1768432372302,0.65806157,949.32,947.23,2.64016931]
[1768432372601,0.65806157,949.31,947.23,2.64016931]
[1768432372803,0.65806157,949.3,947.23,2.64016931]
[1768432373002,0.65806157,949.29,947.23,2.64016931]
[1768432373300,0.65806157,949.28,947.23,2.64016931]
[1768432373502,0.65806157,949.27,947.23,2.64016931]
[1768432373703,0.65806157,949.26,947.23,2.64016931]
[1768432373904,0.65806157,949.25,947.23,2.64016931]
[1768432374106,0.65806157,949.24,947.23,2.64016931]
[1768432374302,0.65806157,949.23,947.23,2.64016931]
[1768432374603,0.65806157,949.22,947.25,2.64016931]
[1768432374803,0.65806157,949.21,947.25,2.64016931]
[1768432375006,0.18338133,949.67,947.25,2.64016931]
[1768432375007,0.65806157,949.2,947.25,2.64016931]
[1768432375306,0.65806157,949.19,947.25,2.64016931]
[1768432375503,0.65806157,949.18,947.25,2.64016931]
[1768432375707,0.65806157,949.17,947.25,2.64016931]
[1768432375908,0.65806157,949.16,947.25,2.64016931]
[1768432376104,0.65806157,949.15,947.25,2.64016931]
[1768432376304,0.65806157,949.14,947.25,2.64016931]
[1768432376508,0.65806157,949.13,947.25,2.64016931]
[1768432376805,0.65806157,949.12,947.25,2.64016931]
[1768432377008,0.65806157,949.11,947.25,2.64016931]
[1768432377205,0.65806157,949.1,947.25,2.64016931]
[1768432377408,0.65806157,949.09,947.25,2.64016931]
[1768432377610,0.65806157,949.08,947.25,2.64016931]
[1768432377910,0.65806157,949.07,947.25,2.64016931]
[1768432378210,0.65806157,949.06,947.25,2.64016931]
[1768432378410,0.65806157,949.05,947.25,2.64016931]
[1768432378610,0.65806157,949.04,947.25,2.64016931]
[1768432378810,0.65806157,949.03,947.25,2.64016931]
[1768432379011,0.65806157,949.02,947.25,2.64016931]
[1768432379210,0.65806157,949.01,947.25,2.64016931]
[1768432379406,0.65806157,949.0,947.25,2.64016931]
[1768432379605,0.65806157,948.99,947.25,2.64016931]
[1768432379806,0.65806157,948.98,947.25,2.64016931]
[1768432380011,0.65806157,948.97,947.25,2.64016931]
[1768432380211,0.65806157,948.96,947.25,2.64016931]
[1768432380411,0.65806157,948.95,947.25,2.64016931]
[1768432380611,0.18338133,949.67,947.25,2.64016931]
[1768432380911,0.65775529,949.66,947.25,2.64016931]
[1768432381110,0.65775529,949.65,947.25,2.64016931]
[1768432381310,0.65775529,949.64,947.25,2.64016931]
[1768432381509,0.65775529,949.63,947.25,2.64016931]
[1768432381708,0.65775529,949.62,947.25,2.64016931]
[1768432381912,0.65775529,949.61,947.25,2.64016931]
[1768432382110,0.65775529,949.6,947.25,2.64016931]
[1768432382313,0.65775529,949.59,947.25,2.64016931]
[1768432382511,0.65775529,949.58,947.25,2.64016931]
[1768432382710,0.65775529,949.57,947.25,2.64016931]
[1768432382914,0.18338133,949.67,947.25,2.64016931]
[1768432382915,0.65775529,949.56,947.25,2.64016931]
[1768432383115,0.65775529,949.55,947.25,2.64016931]
[1768432383313,0.65775529,949.54,947.25,2.64016931]
[1768432383513,0.65775529,949.53,947.26,2.64016931]
[1768432383712,0.65775529,949.52,947.26,2.64016931]
[1768432383914,0.65775529,949.51,947.29,2.64016931]
[1768432384116,0.65775529,949.5,947.29,2.64016931]
[1768432384314,0.65775529,949.49,947.29,2.64016931]
[1768432384618,0.65775529,949.48,947.3,2.64016931]
[1768432384814,0.65775529,949.47,947.3,2.64016931]
[1768432385017,0.65775529,949.46,947.29,2.64016931]
[1768432385317,0.65775529,949.45,947.29,2.64016931]
[1768432385518,0.65775529,949.45,946.95,3.66114111]
[1768432385519,0.65775529,949.44,947.3,2.64016931]
[1768432385712,0.65775529,949.43,947.3,2.64016931]
[1768432385916,0.65775529,949.42,947.3,2.64016931]
[1768432386114,0.65775529,949.41,947.3,2.64016931]
[1768432386320,0.65775529,949.4,947.3,2.64016931]
[1768432386513,0.65775529,949.39,947.3,2.64016931]
[1768432386718,0.65775529,949.38,947.3,2.64016931]
[1768432387018,0.65775529,949.37,947.3,2.64016931]
[1768432387319,0.65775529,949.36,947.3,2.64016931]
[1768432387514,0.65775529,949.35,947.3,2.64016931]
[1768432387718,0.65775529,949.34,947.3,2.64016931]
[1768432387913,0.18338133,949.67,947.3,2.64016931]
[1768432387914,0.65775529,949.33,947.3,2.64016931]
[1768432388118,0.65775529,949.32,947.3,2.64016931]
[1768432388318,0.65775529,949.31,947.3,2.64016931]
[1768432388516,0.65775529,949.3,947.3,2.64016931]
[1768432388722,0.65775529,949.29,947.31,2.64016931]
[1768432388920,0.65775529,949.28,947.31,2.64016931]
[1768432389120,0.65775529,949.27,947.31,2.64016931]
[1768432389421,0.65775529,949.26,947.31,2.64016931]
[1768432389622,0.65775529,949.25,947.31,2.64016931]
[1768432389919,0.65775529,949.24,947.31,2.64016931]
[1768432390118,0.65775529,949.23,947.31,2.64016931]
[1768432390319,0.65775529,949.22,947.31,2.64016931]
[1768432390519,0.65775529,949.21,947.31,2.64016931]
[1768432390819,0.65775529,949.2,947.32,2.64016931]
[1768432391022,0.65775529,949.19,947.32,2.64016931]
[1768432391319,0.65775529,949.18,947.32,2.64016931]
[1768432391518,0.65775529,949.17,947.32,2.64016931]
[1768432391722,0.65775529,949.16,947.32,2.64016931]
[1768432391921,0.65775529,949.15,947.32,2.64016931]
[1768432392122,0.65775529,949.14,947.32,2.64016931]
[1768432392322,0.65775529,949.13,947.32,2.64016931]
[1768432392518,0.65775529,949.12,947.32,2.64016931]
[1768432392720,0.65775529,949.11,947.32,2.64016931]
[1768432392925,0.65775529,949.1,947.33,2.64016931]
[1768432393124,0.65775529,949.09,947.33,2.64016931]
[1768432393323,0.65775529,949.08,947.33,2.64016931]
[1768432393519,0.65775529,949.07,947.33,2.64016931]
[1768432393721,0.65775529,949.06,947.33,2.64016931]
[1768432393924,0.65775529,949.05,947.33,2.64016931]
[1768432394124,0.65775529,949.04,947.33,2.64016931]
[1768432394325,0.65775529,949.03,947.34,2.64016931]
[1768432394621,0.65775529,949.02,947.34,2.64016931]
[1768432394825,0.65775529,949.01,947.34,2.64016931]
[1768432395121,0.65775529,949.0,947.34,2.64016931]
[1768432395326,0.65775529,948.99,947.34,2.64016931]
[1768432395626,0.65775529,948.98,947.34,2.64016931]
[1768432395824,0.65775529,948.97,947.34,2.64016931]
[1768432396022,0.65775529,948.96,947.34,2.64016931]
[1768432396226,0.65775529,948.95,947.34,2.64016931]
[1768432396423,0.65775529,948.94,947.35,2.64016931]
[1768432396628,3.386,949.26,947.35,2.64016931]
[1768432396833,0.6580409,949.25,947.35,2.64016931]
[1768432397028,0.6580409,949.24,947.35,2.64016931]
[1768432397232,0.6580409,949.23,947.35,2.64016931]
[1768432397430,0.6580409,949.22,947.35,2.64016931]
[1768432397734,0.6580409,949.21,947.35,2.64016931]
[1768432397928,0.6580409,949.2,947.36,2.64016931]
[1768432398132,0.6580409,949.19,947.36,2.64016931]
[1768432398331,0.6580409,949.18,947.36,2.64016931]
[1768432398534,0.6580409,949.17,947.45,2.64016931]
[1768432398730,0.6580409,949.16,947.45,2.64016931]
[1768432398933,0.6580409,949.15,947.45,2.64016931]
[1768432399134,0.6580409,949.14,947.45,2.64016931]
[1768432399431,0.6580409,949.13,947.45,2.64016931]
[1768432399635,0.6580409,949.12,947.44,2.64016931]
[1768432399835,0.6580409,949.11,947.44,2.64016931]
[1768432400035,0.6580409,949.1,947.44,2.64016931]
[1768432400232,0.6580409,949.09,947.44,2.64016931]
[1768432400437,0.6580409,949.08,947.44,2.64016931]
[1768432400635,0.6580409,949.07,947.44,2.64016931]
[1768432400839,0.6580409,949.06,947.44,2.64016931]
[1768432401136,0.6580409,949.05,947.44,2.64016931]
[1768432401338,3.386,949.26,947.44,2.64016931]
[1768432401636,0.65773623,949.25,947.43,2.64016931]
[1768432401837,0.65773623,949.24,947.43,2.64016931]
[1768432402036,3.386,949.26,947.43,2.64016931]
[1768432402037,0.65773623,949.23,947.43,2.64016931]
[1768432402337,0.65773623,949.22,947.43,2.64016931]
[1768432402633,0.65773623,949.21,947.43,2.64016931]
[1768432402836,0.65773623,949.2,947.43,2.64016931]
[1768432403038,0.65773623,949.19,947.43,2.64016931]
[1768432403236,0.65773623,949.18,947.43,2.64016931]
[1768432403435,0.65773623,949.17,947.43,2.64016931]
[1768432403639,0.65773623,949.16,947.43,2.64016931]
[1768432403840,0.65773623,949.15,947.43,2.64016931]
[1768432404037,0.65773623,949.14,947.43,2.64016931]
[1768432404238,0.65773623,949.13,947.43,2.64016931]
[1768432404436,0.65773623,949.12,947.43,2.64016931]
[1768432404641,0.65773623,949.11,947.43,2.64016931]
[1768432404937,0.65773623,949.1,947.42,2.64016931]
[1768432405141,0.65773623,949.09,947.42,2.64016931]
[1768432405339,0.65773623,949.08,947.42,2.64016931]
[1768432405542,0.65773623,949.07,947.42,2.64016931]
[1768432405742,3.386,949.26,947.42,2.64016931]
[1768432405938,0.6575066,949.25,947.42,2.64016931]
[1768432406142,0.6575066,949.24,947.42,2.64016931]
[1768432406442,0.6575066,949.23,947.42,2.64016931]
[1768432406640,0.6575066,949.22,947.42,2.64016931]
[1768432406844,0.6575066,949.21,947.42,2.64016931]
[1768432407045,0.6575066,949.2,947.42,2.64016931]
[1768432407344,0.6575066,949.19,947.42,2.64016931]
[1768432407544,0.6575066,949.18,947.42,2.64016931]
[1768432407745,0.6575066,949.17,947.42,2.64016931]
[1768432407945,0.6575066,949.16,947.42,2.64016931]
[1768432408142,0.6575066,949.15,947.42,2.64016931]
[1768432408341,0.6575066,949.14,947.41,2.64016931]
[1768432408546,0.6575066,949.13,947.41,2.64016931]
[1768432408746,0.6575066,949.12,947.41,2.64016931]
[1768432409042,0.6575066,949.11,947.41,2.64016931]
[1768432409342,0.6575066,949.1,947.41,2.64016931]
[1768432409542,0.6575066,949.09,947.41,2.64016931]
[1768432409746,0.6575066,949.08,947.41,2.64016931]
[1768432409943,0.6575066,949.07,947.41,2.64016931]
[1768432410147,3.386,949.26,947.41,2.64016931]
[1768432410344,0.6573866,949.25,947.41,2.64016931]
[1768432410545,0.6573866,949.24,947.41,2.64016931]
[1768432410749,0.6573866,949.23,947.41,2.64016931]
[1768432410946,0.6573866,949.22,947.41,2.64016931]
[1768432411149,0.6573866,949.21,947.41,2.64016931]
[1768432411350,0.6573866,949.2,947.41,2.64016931]
[1768432411550,0.6573866,949.19,947.41,2.64016931]
[1768432411750,0.6573866,949.18,947.41,2.64016931]
[1768432411946,0.6573866,949.17,947.41,2.64016931]
[1768432412146,0.6573866,949.16,947.41,2.64016931]
[1768432412346,0.6573866,949.15,947.41,2.64016931]
[1768432412548,0.6573866,949.14,947.41,2.64016931]
[1768432412747,0.6573866,949.13,947.41,2.64016931]
[1768432412946,0.6573866,949.12,947.41,2.64016931]
[1768432413253,5.73972637,949.9,947.41,2.64016931]
[1768432413448,0.65724742,949.89,947.41,2.64016931]
[1768432413652,0.65724742,949.88,947.52,2.64016931]
[1768432413852,0.65724742,949.87,947.52,2.64016931]
[1768432414152,0.65724742,949.86,947.52,2.64016931]
[1768432414348,0.65724742,949.85,947.52,2.64016931]
[1768432414652,0.65724742,949.84,947.51,2.64016931]
[1768432414852,0.65724742,949.83,947.51,2.64016931]
[1768432415050,3.503,949.84,947.51,2.64016931]
[1768432415051,0.65724742,949.82,947.51,2.64016931]
[1768432415254,0.65724742,949.81,947.68,2.64016931]
[1768432415454,0.65724742,949.8,947.68,2.64016931]
[1768432415651,0.65724742,949.79,947.66,2.64016931]
[1768432415851,0.65724742,949.78,947.66,2.64016931]
[1768432416051,0.65724742,949.77,947.66,2.64016931]
[1768432416253,0.65724742,949.76,947.66,2.64016931]
[1768432416453,0.65724742,949.75,947.66,2.64016931]
[1768432416654,0.65724742,949.74,947.66,2.64016931]
[1768432416849,0.65724742,949.73,947.64,2.64016931]
[1768432417050,0.65724742,949.72,947.64,2.64016931]
[1768432417250,0.65724742,949.71,947.64,2.64016931]
[1768432417454,0.65724742,949.7,947.64,2.64016931]
[1768432417656,0.65724742,949.69,947.64,2.64016931]
[1768432417855,0.65724742,949.68,947.63,2.64016931]
[1768432418057,0.65724742,949.67,947.63,2.64016931]
[1768432418259,0.65724742,949.66,947.63,2.64016931]
[1768432418556,0.65724742,949.65,947.63,2.64016931]
[1768432418756,0.65724742,949.64,947.62,2.64016931]
[1768432418957,0.65724742,949.63,947.62,2.64016931]
[1768432419257,0.65724742,949.62,947.61,2.64016931]
[1768432419457,0.65724742,949.61,947.61,2.64016931]
[1768432419651,3.503,949.84,947.61,2.64016931]
[1768432419652,0.65724742,949.6,947.61,2.64016931]